Workbook

Sheet Sheet1
A2: Average Number of Customers by Rate Schedule
B4: 1991 | C4: 1992 | D4: 1993 | E4: 1994 | F4: 1995 | G4: 1996 | H4: 1997 | I4: 1998 | J4: 1999 | K4: 2000 | L4: 2001 | M4: 2002 | N4: 2003 | O4: 2004 | P4: 2005 | Q4: 2006 | R4: 2007 | S4: 2008 | T4: 2009 | U4: 2010
A5: Residential Schedule 001 | B5: 157271 | C5: 159613 | D5: 162228 | E5: 165509 | F5: 168980 | G5: 170858 | H5: 171926 | I5: 175322 | J5: 177561 | K5: 178707 | L5: 180308 | M5: 181660 | N5: 183666 | O5: 186321 | P5: 189285 | Q5: 193059.8333 | R5: 196476 | S5: 198705.4167 | T5: 200134.0833 | U5: 200676.5833
A6: General Svc Schedule 011/012 | B6: =14740+3791 -> 18531 | C6: =15053+3881 -> 18934 | D6: =15401+3974 -> 19375 | E6: =15771+4099 -> 19870 | F6: =16253+4191 -> 20444 | G6: =16674+4334 -> 21008 | H6: =16815+4461 -> 21276 | I6: =17205+4677 -> 21882 | J6: =17516+4875 -> 22391 | K6: =17515+5315 -> 22830 | L6: 23427 | M6: 23915 | N6: 24324 | O6: 24718 | P6: 25188 | Q6: 25809.91667 | R6: 26429 | S6: 26885.58333 | T6: 27141.58333 | U6: 27495.5
A7: Large Gen Svc Schedule 021/022 | B7: =2514+37 -> 2551 | C7: =2570+39 -> 2609 | D7: =2613+39 -> 2652 | E7: =2671+38 -> 2709 | F7: =2778+38 -> 2816 | G7: =2855+39 -> 2894 | H7: =2908+41 -> 2949 | I7: =3017+41 -> 3058 | J7: =3077+43 -> 3120 | K7: =3163+46 -> 3209 | L7: 3180 | M7: 3182 | N7: 3210 | O7: 3302 | P7: 3354.916667 | Q7: 3303.833333 | R7: 3283.333333 | S7: 3314.666667 | T7: 3351.5 | U7: 3275.25
A8: Extra Large Gen Schedule 25 | B8: 14 | C8: 14 | D8: 15 | E8: 15 | F8: 15 | G8: 18 | H8: 20 | I8: 21 | J8: 21 | K8: 22 | L8: 23 | M8: 22 | N8: 20 | O8: 19 | P8: 21.25 | Q8: 21 | R8: 22.08333333 | S8: 22 | T8: 22 | U8: 22
A9: Pumping Schedule 30/31/32 | B9: =37+452+352 -> 841 | C9: =36+485+382 -> 903 | D9: =37+500+349 -> 886 | E9: =37+545+397 -> 979 | F9: =38+556+377 -> 971 | G9: =34+561+370 -> 965 | H9: =37+573+367 -> 977 | I9: =38+616+407 -> 1061 | J9: =40+643+432 -> 1115 | K9: =40+682+498 -> 1220 | L9: 1877 | M9: 1936 | N9: 2036 | O9: 2100 | P9: 2152.416667 | Q9: 2181.25 | R9: 2246.833333 | S9: 2315.333333 | T9: 2360.75 | U9: 2380
A10: Street and Area Lights | B10: =17+123+5+19+19 -> 183 | C10: =17+124+5+19+19 -> 184 | D10: =17+125+5+18+20 -> 185 | E10: =17+140+5+18+20 -> 200 | F10: =16+146+5+18+21 -> 206 | G10: =15+157+5+18+21 -> 216 | H10: =12+150+6+16+20 -> 204 | I10: =14+166+9+18+23 -> 230 | J10: =12+175+9+18+23 -> 237 | K10: =12+179+9+18+25 -> 243 | L10: 254 | M10: 260 | N10: 272 | O10: 264 | P10: 269.25 | Q10: 283.5833333 | R10: 299.9166667 | S10: 310.25 | T10: 321.3333333 | U10: 324.6666667
A11: Total | B11: =SUM(B5:B10) -> 179391 | C11: 182257 | D11: 185341 | E11: 189282 | F11: 193432 | G11: 195959 | H11: 197352 | I11: 201574 | J11: 204445 | K11: 206231 | L11: 209069 | M11: 210975 | N11: 213528 | O11: 216724 | P11: 220270.8333 | Q11: 224659.4167 | R11: 228757.1667 | S11: 231553.25 | T11: 233331.25 | U11: =SUM(U5:U10) -> 234174

Sheet Sheet2

Sheet Sheet3
